Workbook

Sheet Начало
A1: Отслеживание инвестиций | B1: Отслеживание инвестиций
A3: Шаблон отслеживания инвестиций позволяет отслеживать инвестиции и распределение активов. Тип данных "Акции" в Excel помогает поддерживать в актуальном состоянии цены и сведения о ресурсах в портфеле. Шаблон состоит из двух листов, "Портфель" и "Выделенные ресурсы", описанных ниже. Примечание. Тип данных "Акции" в Excel доступен только при наличии подписки на Office 365.
A5: Портфель | B5: Портфель
A6: Добавьте инвестиции, введите торговые коды, названия компаний или фондов на примерах или добавьте дополнительные строки. Выберите категорию активов и введите количество акций.
A7: Выберите Добавить столбец, чтобы добавить дополнительные столбцы, например "Символ торгового кода" или "Биржа".
A21: Чтобы обновить данные, щелкните любую акцию. На вкладке "Данные", в группе "Запросы и подключения", нажмите кнопку "Обновить все" или нажмите клавиши CTRL+ALT+F5.
A26: Распределение активов | B26: Распределение активов
A28: Измените Категория и Цель, чтобы настроить цели портфелей.
A29: Если категория ресурсов превышает Пороговое значение, сумма будет выделена желтым цветом.

Sheet Портфель
A1: Отслеживание инвестиций | B1: Отслеживание инвестиций
A3: Портфель | B3: Портфель
A5: В ячейках B5:I11 находится таблица с имеющимися акциями, а в строке 12 представлены итоги. Введите название компании в ячейках B5:B11, а затем выберите "Данные" > "Обновить" или нажмите клавиши CTRL+ALT+F5. | B5: Компания | C5: Категория | D5: Доли активов | E5: Цена | F5: Изменение | G5: Изменение (%) | H5: Портфель (%) | I5: Стоимость
A6: Добавьте инвестиции, введите торговые коды, названия компаний или фондов на примерах или добавьте дополнительные строки. Выберите категорию активов и введите количество акций. | C6: Акции США | D6: 1,200 | E6: =_FV(TablePortfolio[[#This Row],[Компания]],"Price") -> 116.77 ₽ | F6: =_FV(TablePortfolio[[#This Row],[Компания]],"Price") -> 116.77 ₽ | G6: =_FV(TablePortfolio[[#This Row],[Компания]],"Change (%)",TRUE) -> -0.97% | H6: =IFERROR(I6/SUBTOTAL(109,TablePortfolio[Стоимость]),"") -> 62% | I6: =D6 * E6 -> 140,124.00 ₽
A7: Нажмите кнопку "Добавить столбец", чтобы добавить дополнительные столбцы, например "Символ торгового кода" или "Биржа". | C7: Облигации | D7: 1,300 | E7: =_FV(TablePortfolio[[#This Row],[Компания]],"Price") -> 10.69 ₽ | F7: =_FV(TablePortfolio[[#This Row],[Компания]],"Price") -> 10.69 ₽ | G7: =_FV(TablePortfolio[[#This Row],[Компания]],"Change (%)",TRUE) -> 0.19% | H7: =IFERROR(I7/SUBTOTAL(109,TablePortfolio[Стоимость]),"") -> 6% | I7: 13,897.00 ₽
A8: Чтобы обновить данные, щелкните любую акцию. На вкладке "Данные", в группе "Запросы и подключения", нажмите кнопку "Обновить все" или нажмите клавиши CTRL+ALT+F5. | C8: Международные акции | D8: 1,200 | E8: =_FV(TablePortfolio[[#This Row],[Компания]],"Price") -> 27.75 ₽ | F8: =_FV(TablePortfolio[[#This Row],[Компания]],"Price") -> 27.75 ₽ | G8: =_FV(TablePortfolio[[#This Row],[Компания]],"Change (%)",TRUE) -> -0.25% | H8: =IFERROR(I8/SUBTOTAL(109,TablePortfolio[Стоимость]),"") -> 15% | I8: 33,300.00 ₽
C9: Наличные деньги | D9: 10,000 | E9: =_FV(TablePortfolio[[#This Row],[Компания]],"Price") -> 1.00 ₽ | F9: =_FV(TablePortfolio[[#This Row],[Компания]],"Price") -> 1.00 ₽ | G9: =_FV(TablePortfolio[[#This Row],[Компания]],"Change (%)",TRUE) -> 0.00% | H9: =IFERROR(I9/SUBTOTAL(109,TablePortfolio[Стоимость]),"") -> 4% | I9: 10,000.00 ₽
C10: Недвижимость | D10: 125 | E10: =_FV(TablePortfolio[[#This Row],[Компания]],"Price") -> 122.14 ₽ | F10: =_FV(TablePortfolio[[#This Row],[Компания]],"Price") -> 122.14 ₽ | G10: =_FV(TablePortfolio[[#This Row],[Компания]],"Change (%)",TRUE) -> -0.97% | H10: =IFERROR(I10/SUBTOTAL(109,TablePortfolio[Стоимость]),"") -> 7% | I10: 15,267.50 ₽
C11: Товары | D11: 100 | E11: =_FV(TablePortfolio[[#This Row],[Компания]],"Price") -> 123.65 ₽ | F11: =_FV(TablePortfolio[[#This Row],[Компания]],"Price") -> 123.65 ₽ | G11: =_FV(TablePortfolio[[#This Row],[Компания]],"Change (%)",TRUE) -> -0.52% | H11: =IFERROR(I11/SUBTOTAL(109,TablePortfolio[Стоимость]),"") -> 5% | I11: 12,365.00 ₽
B12: Итог | I12: =IFERROR(SUBTOTAL(109,TablePortfolio[Стоимость]), "") -> 224,953.50 ₽

Sheet Распределение ресурсов
A1: Отслеживание инвестиций | B1: Отслеживание инвестиций
A3: Распределение активов | B3: Распределение активов
A6: В строках 19–25 находится гистограмма для визуального сравнения фактического процента инвестиций в каждой категории с целевыми показателями, заданными в приведенной ниже таблице.
A19: Это таблица для вычисления фактического процента инвестиций в каждой категории и его сравнения с целевыми показателями. | B19: Категория | C19: Цель | D19: Фактическая | E19: Разница | F19: Пороговое значение | G19: Стоимость
A20: В таблицу автоматически добавляются категории инвестиций из таблицы "Портфель" в ячейках B19:G25. Введите цель для каждой категории инвестиций в ячейках C20:C25, а затем выберите "Данные" > "Обновить" или нажмите клавиши CTRL+ALT+F5. | B20: Акции США | C20: 55% | D20: =IFERROR(G20/SUBTOTAL(109,TableAssetAllocation[Стоимость]),"") -> 62% | E20: =D20 - C20 -> 7.3% | F20: =MIN(5%, $C20 * 25%) -> 5% | G20: =SUMIF(TablePortfolio[Категория], B20, TablePortfolio[Стоимость]) -> 140,124.00 ₽
A21: Если категория ресурсов превышает Пороговое значение, сумма будет выделена желтым цветом. | B21: Международные акции | C21: 20% | D21: =IFERROR(G21/SUBTOTAL(109,TableAssetAllocation[Стоимость]),"") -> 15% | E21: -5.2% | F21: 5% | G21: =SUMIF(TablePortfolio[Категория], B21, TablePortfolio[Стоимость]) -> 33,300.00 ₽
B22: Облигации | C22: 10% | D22: =IFERROR(G22/SUBTOTAL(109,TableAssetAllocation[Стоимость]),"") -> 6% | E22: -3.8% | F22: 3% | G22: =SUMIF(TablePortfolio[Категория], B22, TablePortfolio[Стоимость]) -> 13,897.00 ₽
B23: Наличные деньги | C23: 5% | D23: =IFERROR(G23/SUBTOTAL(109,TableAssetAllocation[Стоимость]),"") -> 4% | E23: -0.6% | F23: 1% | G23: =SUMIF(TablePortfolio[Категория], B23, TablePortfolio[Стоимость]) -> 10,000.00 ₽
B24: Недвижимость | C24: 5% | D24: =IFERROR(G24/SUBTOTAL(109,TableAssetAllocation[Стоимость]),"") -> 7% | E24: 1.8% | F24: 1% | G24: =SUMIF(TablePortfolio[Категория], B24, TablePortfolio[Стоимость]) -> 15,267.50 ₽
B25: Товары | C25: 5% | D25: =IFERROR(G25/SUBTOTAL(109,TableAssetAllocation[Стоимость]),"") -> 5% | E25: 0.5% | F25: 1% | G25: =SUMIF(TablePortfolio[Категория], B25, TablePortfolio[Стоимость]) -> 12,365.00 ₽
